bitfinex/quotes_BTCUSD_20250512
["timestamp","ask_amount","ask_price","bid_price","bid_amount"]
[1747056829771,0.99118745,104210.0,104200.0,0.00214651]
[1747056829976,1.29118745,104210.0,104200.0,0.00214651]
[1747056830202,1.29218745,104210.0,104200.0,0.00214651]
[1747056830430,1.38704175,104210.0,104200.0,0.00214651]
[1747056830630,1.10358745,104210.0,104200.0,0.00214651]
[1747056830839,0.98958745,104210.0,104200.0,0.00214651]
[1747056831040,0.99258745,104210.0,104200.0,0.00214651]
[1747056831445,1.30258745,104210.0,104200.0,0.00214651]
[1747056831669,0.32367446,104210.0,104200.0,0.00214651]
[1747056831895,0.21642016,104210.0,104200.0,0.00214651]
[1747056832054,0.19792016,104210.0,104200.0,0.00214651]
[1747056832305,0.19592016,104210.0,104200.0,0.00214651]
[1747056832462,0.19992016,104210.0,104200.0,0.00314651]
[1747056832828,0.19592016,104210.0,104200.0,0.00214651]
[1747056833515,0.19292016,104210.0,104200.0,0.00214651]
[1747056833937,0.19392016,104210.0,104200.0,0.00214651]
[1747056835172,0.71013315,104210.0,104200.0,0.00214651]
[1747056836160,0.23122016,104210.0,104200.0,0.00214651]
[1747056836810,0.80598745,104210.0,104200.0,0.00214651]
[1747056836933,1.29034745,104210.0,104200.0,0.00214651]
[1747056837343,1.3048883,104210.0,104200.0,0.00214651]
[1747056837556,1.3148883,104210.0,104200.0,0.00214651]
[1747056838445,1.3138883,104210.0,104200.0,0.00214651]
[1747056838678,1.3128883,104210.0,104200.0,0.00214651]
[1747056839062,1.3168883,104210.0,104200.0,0.00314651]
[1747056839296,1.3208883,104210.0,104200.0,0.00314651]
[1747056839716,0.63307446,104210.0,104200.0,0.00314651]
[1747056839892,0.81567446,104210.0,104200.0,0.00314651]
[1747056840101,0.81567446,104210.0,104160.0,0.98745886]
[1747056840102,0.22077386,104180.0,104160.0,0.98745886]
[1747056840304,0.2207707,104180.0,104170.0,0.29936482]
[1747056840578,0.02879528,104180.0,104170.0,0.32624342]
[1747056840789,0.01159766,104190.0,104180.0,0.20157409]
[1747056840996,0.002,104190.0,104180.0,0.7955379]
[1747056841179,0.002,104190.0,104180.0,0.8305379]
[1747056841427,0.0311943,104190.0,104180.0,0.49138697]
[1747056841641,0.002,104190.0,104180.0,1.04073733]
[1747056841873,0.002,104190.0,104180.0,4.45625733]
[1747056842097,0.004,104210.0,104200.0,0.71418208]
[1747056842299,0.2206857,104220.0,104210.0,0.34]
[1747056842508,0.2206857,104220.0,104210.0,0.6202143]
[1747056842509,0.21109126,104220.0,104210.0,0.6202143]
[1747056842928,0.21109126,104220.0,104190.0,0.01454085]
[1747056842929,0.32836049,104220.0,104190.0,0.01454085]
[1747056843148,0.20155466,104190.0,104180.0,0.0968543]
[1747056843359,0.20155466,104190.0,104180.0,0.1048543]
[1747056843360,0.20255466,104190.0,104180.0,0.1048543]
[1747056843571,0.20255466,104190.0,104180.0,0.009]
[1747056843796,0.68046765,104190.0,104180.0,0.001]
[1747056844008,0.86190765,104190.0,104180.0,0.001]
[1747056844219,0.41929466,104190.0,104180.0,0.001]
[1747056844449,0.51514896,104190.0,104180.0,0.001]
[1747056844666,0.5149815,104190.0,104180.0,0.001]
[1747056845084,0.2013872,104190.0,104180.0,0.001]
[1747056845294,0.21098477,104190.0,104180.0,0.001]
[1747056845759,0.21298477,104190.0,104180.0,0.001]
[1747056846411,0.21298477,104190.0,104180.0,1.1375379]
[1747056846412,0.002,104190.0,104180.0,1.1375379]
[1747056846635,0.03379224,104190.0,104180.0,1.1375379]
[1747056846853,0.2231524,104190.0,104180.0,0.4368543]
[1747056847111,0.21315241,104190.0,104180.0,0.64802679]
[1747056847326,0.004,104190.0,104180.0,1.90747075]
[1747056847537,0.22474971,104190.0,104180.0,0.63742839]
[1747056847746,0.21315242,104190.0,104180.0,0.62782972]
[1747056847957,0.21315242,104190.0,104180.0,1.15007875]
[1747056847958,0.002,104190.0,104180.0,1.15007875]
[1747056848170,0.01199999,104190.0,104180.0,2.51682875]
[1747056848377,0.22115222,104190.0,104180.0,0.6222143]
[1747056848580,0.01959719,104190.0,104180.0,0.85258368]
[1747056848814,0.23074923,104190.0,104180.0,0.84298556]
[1747056849022,0.23174923,104190.0,104180.0,0.84298556]
[1747056849229,0.20255466,104190.0,104180.0,0.6222143]
[1747056849438,0.192957,104190.0,104180.0,0.6222143]
[1747056849644,0.191957,104190.0,104180.0,0.6222143]
[1747056849848,0.21119258,104170.0,104160.0,0.75755337]
[1747056850053,0.21119258,104170.0,104160.0,0.0980009]
[1747056850261,0.20159335,104170.0,104160.0,0.0980009]
[1747056850685,0.20159335,104170.0,104160.0,0.0021466]
[1747056851748,0.20159335,104170.0,104160.0,0.0031466]
[1747056851960,0.20159335,104170.0,104160.0,0.0041466]
[1747056852223,0.19199385,104170.0,104160.0,0.0041466]
[1747056852449,0.19199385,104170.0,104160.0,0.0031466]
[1747056852665,0.19199385,104170.0,104160.0,0.19515888]
[1747056852881,0.19299385,104170.0,104160.0,0.0031466]
[1747056853097,0.19299385,104170.0,104160.0,0.19515888]
[1747056853325,0.19299385,104170.0,104160.0,0.0031466]
[1747056853550,0.19299385,104170.0,104160.0,0.0021466]
[1747056853774,0.002,104170.0,104160.0,0.8073275]
[1747056853991,0.23239094,104170.0,104160.0,0.31881464]
[1747056854217,0.02119799,104170.0,104160.0,0.81692774]
[1747056854431,0.02119799,104170.0,104160.0,1.36896859]
[1747056854432,0.01199999,104170.0,104160.0,1.36896859]
[1747056854665,0.01199999,104170.0,104160.0,3.19761059]
[1747056854871,0.03119817,104170.0,104160.0,1.56350859]
[1747056855116,0.02059885,104170.0,104160.0,1.68453459]
[1747056855352,0.22079181,104170.0,104160.0,0.82395403]
[1747056855575,0.01919836,104170.0,104160.0,0.85275475]
[1747056855783,0.02879786,104170.0,104160.0,1.24315479]
[1747056856027,0.02879786,104170.0,104160.0,1.26235481]
[1747056856238,0.21119267,104170.0,104160.0,1.21141318]
[1747056856451,0.00959821,104180.0,104170.0,0.21119295]
[1747056856678,0.02879428,104180.0,104170.0,0.30704669]
[1747056856883,0.22077126,104180.0,104170.0,0.30704744]
[1747056857154,0.22077126,104180.0,104170.0,0.31664694]
[1747056857362,0.20157419,104180.0,104170.0,0.70704744]
[1747056857576,0.19197542,104180.0,104170.0,0.0958543]
[1747056857788,0.19197542,104180.0,104160.0,0.0041466]
[1747056857789,0.20159335,104170.0,104160.0,0.0041466]
[1747056858001,0.20159335,104170.0,104160.0,0.0031466]
[1747056858470,0.21999335,104170.0,104160.0,0.0031466]
[1747056859157,0.23919335,104170.0,104160.0,0.0031466]
[1747056859597,0.33504765,104170.0,104160.0,0.0021466]
[1747056860055,0.36192282,104170.0,104160.0,0.0021466]
[1747056860296,0.23919335,104170.0,104160.0,0.0021466]
[1747056860773,0.21119276,104170.0,104160.0,0.19415888]
[1747056861024,0.21119295,104170.0,104160.0,0.0021466]
[1747056861258,0.21319295,104170.0,104160.0,0.0021466]
[1747056861494,0.21619295,104170.0,104160.0,0.0021466]
[1747056861724,0.21619314,104170.0,104160.0,0.0021466]
[1747056862434,0.21619314,104170.0,104160.0,0.19415888]
[1747056862667,0.03379796,104170.0,104160.0,1.13772689]
[1747056862901,0.005,104170.0,104160.0,1.13772689]
[1747056863135,0.005,104170.0,104160.0,1.36402774]
[1747056863355,0.04179767,104170.0,104160.0,1.36402774]
[1747056863596,0.22419257,104170.0,104160.0,0.82871446]
[1747056863839,0.21419258,104170.0,104160.0,0.4390009]
[1747056864099,0.21419258,104170.0,104160.0,0.63101318]
[1747056864355,0.20459335,104170.0,104160.0,0.4380009]
[1747056864610,0.20159335,104170.0,104160.0,0.64921431]
[1747056864840,0.22077126,104180.0,104170.0,0.20159345]
[1747056865086,0.26871134,104200.0,104170.0,0.62784815]
[1747056865291,0.01919615,104180.0,104170.0,1.11636]
[1747056865544,0.00959444,104220.0,104210.0,0.00959591]
[1747056865795,0.01919081,104210.0,104200.0,0.20150022]
[1747056866040,0.23032516,104200.0,104190.0,0.91335863]
[1747056866272,0.22072879,104200.0,104190.0,0.99467217]
[1747056866522,0.22072879,104200.0,104190.0,1.3755313]
[1747056866754,0.21113232,104200.0,104190.0,0.34]
[1747056867216,0.21117231,104180.0,104170.0,1.01623354]
[1747056867514,0.01919689,104180.0,104170.0,1.12183385]
[1747056867756,0.01919247,104200.0,104190.0,0.21115242]
[1747056867996,0.21115149,104190.0,104180.0,0.69008493]
[1747056868234,0.22077061,104180.0,104170.0,0.96597908]
[1747056868463,0.01919652,104180.0,104170.0,1.08503183]
[1747056868692,0.2111724,104180.0,104170.0,1.22119475]
[1747056868937,0.01919698,104180.0,104170.0,1.24039367]
[1747056869184,0.00959536,104210.0,104200.0,0.01919357]
[1747056869425,0.01919283,104200.0,104190.0,1.03006467]
[1747056869658,0.20151607,104210.0,104200.0,0.00959692]
[1747056869864,0.00959646,104200.0,104190.0,0.56569234]
[1747056870099,0.00959646,104200.0,104190.0,0.67114439]
[1747056870100,0.22072833,104200.0,104190.0,0.67114439]
[1747056870335,0.03838595,104200.0,104190.0,0.66154729]
[1747056870572,0.22072879,104200.0,104190.0,0.65194981]
[1747056870817,0.19192016,104210.0,104190.0,0.67114467]
[1747056871052,0.01919072,104210.0,104200.0,0.97005516]
[1747056871326,0.22070715,104210.0,104200.0,0.95086278]
[1747056871570,0.19192016,104210.0,104200.0,1.97060988]
[1747056871810,0.20149645,104220.0,104210.0,0.01919154]
[1747056872051,0.20149645,104220.0,104210.0,0.64888516]
[1747056872052,0.00959444,104220.0,104210.0,0.64888516]
[1747056872286,0.01199999,104230.0,104220.0,0.56068616]
[1747056872523,0.01199999,104230.0,104220.0,2.19896274]
[1747056872762,0.02159332,104230.0,104220.0,2.21716274]
[1747056872975,0.24225776,104230.0,104220.0,1.3386743]
[1747056873190,0.0409268,104230.0,104220.0,1.3386743]
[1747056873425,0.25199809,104230.0,104220.0,1.02087515]
[1747056873653,0.22321763,104230.0,104220.0,1.0063343]
[1747056873898,0.22321763,104230.0,104220.0,1.01592938]
[1747056874107,0.22321763,104230.0,104220.0,1.0063343]
[1747056874318,0.20362375,104230.0,104220.0,0.8358543]
[1747056874571,0.00214635,104230.0,104220.0,1.53545317]
[1747056874810,0.00214635,104230.0,104220.0,1.58959402]
[1747056874811,0.00314635,104230.0,104220.0,1.58959402]
[1747056875030,0.00314635,104230.0,104220.0,3.30882102]
[1747056875031,0.01314634,104230.0,104220.0,3.30882102]
[1747056875258,0.00314635,104230.0,104220.0,3.08472502]
[1747056876516,0.00314635,104230.0,104220.0,3.50102502]
[1747056876517,0.00514635,104230.0,104220.0,3.50102502]
[1747056877017,0.00214635,104230.0,104220.0,3.50102502]
[1747056877227,0.00214635,104230.0,104220.0,3.50602502]
[1747056877720,0.00214635,104230.0,104220.0,3.50302502]
[1747056877923,0.00314635,104230.0,104220.0,3.50602502]
[1747056878094,0.00314635,104230.0,104220.0,3.08972502]
[1747056878341,0.00314635,104230.0,104220.0,3.09572502]
[1747056878544,0.00314635,104230.0,104220.0,2.92487802]
[1747056879346,0.01273968,104230.0,104220.0,1.45707003]
[1747056879593,0.00314635,104230.0,104220.0,2.06578217]
[1747056879806,0.00314635,104230.0,104220.0,2.08032302]
[1747056880005,0.00314635,104230.0,104220.0,2.11862302]
[1747056880765,0.20502967,104230.0,104220.0,1.1982233]
[1747056880969,0.22421753,104230.0,104220.0,1.0166143]
[1747056881172,0.02273977,104230.0,104220.0,1.24689508]
[1747056881374,0.03233328,104230.0,104220.0,2.60576107]
[1747056881582,0.0419268,104230.0,104220.0,2.06742607]
[1747056881780,0.25299799,104230.0,104220.0,2.08196701]
[1747056881983,0.24340466,104230.0,104220.0,1.71515977]
[1747056882183,0.22421744,104230.0,104220.0,0.1008543]
[1747056882359,0.22421744,104230.0,104220.0,0.011]
[1747056882360,0.21421745,104230.0,104220.0,0.011]
[1747056882548,0.23291745,104230.0,104220.0,0.351]
[1747056882967,0.23191745,104230.0,104220.0,0.346]
[1747056883173,0.25081745,104230.0,104220.0,0.006]
[1747056883380,0.25081745,104230.0,104220.0,0.008]
[1747056883798,0.25081745,104230.0,104220.0,0.006]
[1747056884033,0.19191821,104220.0,104200.0,0.56072793]
[1747056884233,0.00314635,104230.0,104220.0,0.56068597]
[1747056884467,0.04152134,104230.0,104220.0,1.30721335]
[1747056884759,0.23340467,104230.0,104220.0,0.80911103]
[1747056884969,0.22381134,104230.0,104220.0,0.80911103]
[1747056885172,0.21321773,104230.0,104220.0,0.51176]
[1747056885378,0.25061773,104230.0,104220.0,0.002]
[1747056885583,0.25061773,104230.0,104200.0,0.55305042]
[1747056885584,0.24030213,104210.0,104200.0,0.55305042]
[1747056885794,0.24030287,104210.0,104200.0,0.65658236]
[1747056885998,0.22111188,104210.0,104200.0,0.4358543]
[1747056886205,0.22111188,104210.0,104200.0,0.65858281]
[1747056886431,0.01959553,104210.0,104200.0,0.65858299]
[1747056886638,0.01959526,104210.0,104200.0,0.66817927]
[1747056886869,0.00999999,104210.0,104200.0,1.16363311]
[1747056887077,0.23240477,104230.0,104220.0,0.21109163]
[1747056887278,0.01918943,104220.0,104210.0,1.43000746]
[1747056887483,0.21321773,104230.0,104220.0,0.20149682]
[1747056887689,0.23987466,104220.0,104210.0,1.43960346]
[1747056887905,0.21109144,104220.0,104210.0,1.51626695]
[1747056888114,0.20149673,104220.0,104210.0,0.34]
[1747056888319,0.20149673,104220.0,104210.0,0.62777446]
[1747056888533,0.19402968,104230.0,104220.0,0.21109163]
[1747056888741,0.04092745,104230.0,104220.0,1.14504807]
[1747056888916,0.23240486,104230.0,104220.0,1.12585892]
[1747056889128,0.22281143,104230.0,104220.0,0.63735112]
[1747056889362,0.23240559,104230.0,104220.0,0.66613544]
[1747056889573,0.21321791,104230.0,104220.0,0.4358543]
[1747056889955,0.23211791,104230.0,104220.0,0.4358543]
[1747056890167,0.22111151,104210.0,104200.0,0.004]
[1747056890369,0.22111151,104210.0,104200.0,0.64130653]
[1747056890566,0.21151597,104210.0,104200.0,0.2650543]
[1747056890774,0.21151597,104210.0,104200.0,0.2610543]
[1747056890984,0.21151597,104210.0,104200.0,0.6010543]
[1747056891189,0.22074888,104190.0,104180.0,0.7444]
[1747056891393,0.22074888,104190.0,104180.0,1.05142698]
[1747056891394,0.22115222,104190.0,104180.0,1.05142698]
[1747056891596,0.22115222,104190.0,104180.0,1.04182849]
[1747056891800,0.21155465,104190.0,104180.0,0.6754143]
[1747056892006,0.21155465,104190.0,104180.0,0.79302972]
[1747056892210,0.21155465,104190.0,104180.0,0.6010543]
[1747056892407,0.20195699,104190.0,104180.0,0.2610543]
[1747056892843,0.20195699,104190.0,104180.0,0.46262849]
[1747056893054,0.20195699,104190.0,104180.0,0.81322716]
[1747056893386,0.00999999,104190.0,104180.0,0.65762565]
[1747056893590,0.00999999,104190.0,104180.0,1.72093516]
[1747056893779,0.00999999,104190.0,104180.0,1.33547601]
[1747056894022,0.22115157,104190.0,104180.0,1.48968801]
[1747056894234,0.24994465,104190.0,104180.0,0.85656302]
[1747056894473,0.0483898,104190.0,104180.0,1.25656302]
[1747056894692,0.02919457,104190.0,104180.0,0.85756302]
[1747056895075,0.23074923,104190.0,104180.0,1.2479649]
[1747056895305,0.00999999,104190.0,104180.0,1.25756302]
[1747056895522,0.00999999,104220.0,104210.0,0.57524791]
[1747056895733,0.03878367,104220.0,104210.0,1.14041984]
[1747056895946,0.21109135,104220.0,104210.0,0.96621046]
[1747056896154,0.22068634,104220.0,104210.0,1.37580637]
[1747056896360,0.01918989,104220.0,104210.0,1.38540136]
[1747056896612,0.01918952,104220.0,104210.0,1.38540136]
[1747056896816,0.01918952,104220.0,104210.0,1.38940136]
[1747056897263,0.22068634,104220.0,104210.0,0.8398543]
[1747056897487,0.21109172,104220.0,104210.0,0.6050543]
[1747056898193,0.21109172,104220.0,104210.0,0.346]
[1747056898606,0.21109172,104220.0,104210.0,0.342]
[1747056899025,0.21109172,104220.0,104210.0,0.34]
[1747056899231,0.01959719,104190.0,104180.0,0.21117229]
[1747056899472,0.02919457,104190.0,104180.0,0.32622329]
[1747056899721,0.02919457,104190.0,104180.0,0.30702686]
[1747056899722,0.23074923,104190.0,104180.0,0.30702686]
[1747056899936,0.02919448,104190.0,104180.0,0.31662491]
[1747056900139,0.02919448,104190.0,104180.0,0.65662491]
[1747056900352,0.03879205,104190.0,104180.0,0.65662491]
[1747056900571,0.24034671,104190.0,104180.0,0.0978543]
[1747056900795,0.22935223,104190.0,104180.0,0.002]
[1747056901001,0.24925223,104190.0,104180.0,0.342]
[1747056901209,0.22963857,104200.0,104190.0,0.191957]
[1747056901416,0.03879187,104190.0,104180.0,0.64902661]
[1747056901633,0.24034662,104190.0,104180.0,0.4378543]
[1747056901843,0.27280578,104190.0,104180.0,0.002]
[1747056902081,0.88968531,104190.0,104180.0,0.002]
[1747056902302,0.21119258,104170.0,104160.0,0.102]
[1747056902532,0.23049258,104170.0,104160.0,0.1021466]
[1747056902747,0.24949258,104170.0,104160.0,0.1021466]
[1747056903016,0.24949258,104170.0,104160.0,0.05602927]
[1747056903017,1.06840557,104170.0,104160.0,0.05602927]
[1747056903232,0.59063314,104150.0,104140.0,0.002]
[1747056903445,1.39730613,104150.0,104140.0,0.002]
[1747056903655,0.34648744,104150.0,104140.0,0.002]
[1747056903862,0.80570043,104150.0,104140.0,0.002]
[1747056904069,1.16430043,104150.0,104140.0,0.002]
[1747056904512,0.68538744,104150.0,104140.0,0.002]
[1747056904717,1.47550043,104150.0,104140.0,0.002]
[1747056905158,1.48550043,104150.0,104140.0,0.002]
[1747056905358,1.04288669,104130.0,104120.0,0.002]
[1747056905597,1.76866099,104130.0,104120.0,0.002]
[1747056905808,1.77866099,104130.0,104120.0,0.002]
[1747056906238,1.79536099,104130.0,104120.0,0.002]
[1747056906454,0.629828,104130.0,104120.0,0.002]
[1747056906678,0.319828,104130.0,104120.0,0.00248876]
[1747056906928,0.01920444,104140.0,104130.0,0.20167088]
[1747056907177,0.01460089,104150.0,104140.0,0.34]
[1747056907424,0.02920572,104130.0,104120.0,1.03738865]
[1747056907662,0.03880809,104130.0,104120.0,1.87324295]
[1747056907904,0.03880809,104130.0,104120.0,1.4086009]
[1747056907905,0.03880892,104130.0,104120.0,1.4086009]
[1747056908159,0.01960272,104130.0,104120.0,1.4086009]
[1747056908403,0.01159969,104170.0,104160.0,0.21121286]
[1747056908631,0.22081273,104160.0,104150.0,0.69013088]
[1747056908873,0.01920002,104160.0,104150.0,1.05893428]
[1747056909154,0.002,104170.0,104160.0,0.58021291]
[1747056909401,0.04079795,104170.0,104160.0,1.10920825]
[1747056909637,0.04079795,104170.0,104160.0,1.09060816]
[1747056909638,0.03133877,104170.0,104160.0,1.09060816]
[1747056909853,0.00214042,104170.0,104160.0,1.72607111]
[1747056910068,0.01214041,104170.0,104160.0,1.74467111]
[1747056910290,0.01214041,104170.0,104160.0,1.44000825]
[1747056910292,0.02173927,104170.0,104160.0,1.44000825]
[1747056910498,0.02173927,104170.0,104160.0,1.9285212]
[1747056910731,0.23293241,104170.0,104160.0,1.03507515]
[1747056910963,0.01214041,104170.0,104160.0,1.24628782]
[1747056911217,0.01214041,104170.0,104160.0,2.96122205]
[1747056911455,0.24253135,104170.0,104160.0,1.03507515]
[1747056911678,0.21333337,104170.0,104160.0,0.8358543]
[1747056911895,0.20373396,104170.0,104160.0,0.4358543]
[1747056912122,0.20373396,104170.0,104160.0,0.34]
[1747056912344,0.20373396,104170.0,104160.0,0.001]
[1747056913041,0.20373396,104170.0,104160.0,0.003]
[1747056913553,0.20373396,104170.0,104160.0,0.002]
[1747056913786,0.31948826,104170.0,104160.0,0.002]
[1747056914016,0.22563396,104170.0,104160.0,0.002]
[1747056914237,0.2057334,104170.0,104160.0,0.2036128]
[1747056914461,0.215333,104170.0,104160.0,0.002]
[1747056915207,0.2112324,104150.0,104140.0,0.53204379]
[1747056915419,0.2112335,104150.0,104140.0,0.46535675]
[1747056915657,0.00960098,104150.0,104140.0,1.15552335]
[1747056915974,0.24003644,104150.0,104140.0,1.17472733]
[1747056916178,0.24003644,104150.0,104140.0,0.66700809]
[1747056916395,0.22083476,104150.0,104140.0,0.65740591]
[1747056916616,0.22083476,104150.0,104140.0,0.67660999]
[1747056916882,0.02880275,104150.0,104140.0,0.66700809]
[1747056917104,0.01920242,104150.0,104140.0,0.4557543]
[1747056917350,0.21123314,104150.0,104140.0,0.4358543]
[1747056918247,0.21123314,104150.0,104140.0,0.34]
[1747056918502,0.21123314,104150.0,104120.0,0.21288394]
[1747056918503,0.22127369,104130.0,104120.0,0.21288394]
[1747056918728,0.22127369,104130.0,104120.0,0.1166543]
[1747056918962,0.2112737,104130.0,104120.0,0.0978543]
[1747056919193,0.2112737,104130.0,104120.0,0.002]
[1747056919927,0.2112737,104130.0,104120.0,0.00248876]
[1747056920141,0.2112737,104130.0,104120.0,0.00948876]
[1747056920359,0.2112737,104130.0,104120.0,0.00648876]
[1747056920600,0.2307737,104130.0,104120.0,0.00248876]
[1747056920816,0.3955337,104130.0,104120.0,0.00248876]
[1747056921290,0.2112737,104130.0,104120.0,0.00348876]
[1747056922059,0.37663909,104130.0,104120.0,0.00348876]
[1747056922265,0.83604099,104130.0,104120.0,0.00248876]
[1747056922674,1.19058184,104130.0,104120.0,0.00248876]
[1747056922886,1.19358184,104130.0,104120.0,1e-08]
[1747056923119,1.19158184,104130.0,104120.0,1e-08]
[1747056923335,1.18704099,104130.0,104120.0,1e-08]
[1747056923540,1.27789529,104130.0,104120.0,1e-08]
[1747056923741,1.18204099,104130.0,104120.0,1e-08]
[1747056924155,1.17904099,104130.0,104120.0,1e-08]
[1747056924359,1.47939553,104130.0,104120.0,1e-08]
[1747056924710,1.81375553,104130.0,104120.0,0.00100001]
[1747056924970,1.01548254,104130.0,104120.0,0.00100001]
[1747056925140,1.031088,104130.0,104120.0,0.00100001]
[1747056925354,1.51000099,104130.0,104120.0,0.00100001]
[1747056925846,1.80000099,104130.0,104120.0,0.00100001]
[1747056926073,1.331088,104130.0,104120.0,0.00100001]
[1747056926324,1.334088,104130.0,104120.0,0.00100001]
[1747056927048,1.82729925,104130.0,104120.0,1e-08]
[1747056927712,0.675628,104130.0,104120.0,1e-08]
[1747056927930,0.335628,104130.0,104120.0,1e-08]
[1747056928136,0.2202737,104130.0,104120.0,1e-08]
[1747056928985,0.21067079,104130.0,104120.0,0.35940001]
[1747056929190,0.21067079,104130.0,104120.0,0.34000001]
[1747056930033,0.20767079,104130.0,104120.0,0.34000001]
[1747056930441,0.20767079,104130.0,104120.0,0.34100001]
[1747056930647,0.20767079,104130.0,104120.0,0.001]
[1747056931239,0.20267079,104130.0,104120.0,0.001]
[1747056931776,0.77743808,104130.0,104120.0,0.001]
[1747056931982,0.87330983,104130.0,104120.0,0.001]
[1747056932188,1.04018983,104130.0,104120.0,0.001]
[1747056932429,0.56127684,104130.0,104120.0,0.001]
[1747056932639,0.91127684,104130.0,104120.0,1e-08]
[1747056932894,1.57446983,104130.0,104120.0,1e-08]
[1747056933363,0.21135489,104090.0,104080.0,0.13548066]
[1747056933593,0.21135489,104090.0,104080.0,0.23148159]
[1747056933823,0.20960001,104090.0,104080.0,0.13562729]
[1747056934045,0.20960001,104090.0,104080.0,0.1923065]
[1747056934272,0.20960001,104090.0,104080.0,0.00014663]
[1747056934505,0.0288225,104080.0,104070.0,0.37323852]
[1747056934733,0.0288225,104080.0,104070.0,0.45948465]
[1747056934734,0.03843021,104080.0,104070.0,0.45948465]
[1747056935010,0.01921367,104090.0,104080.0,0.20176777]
[1747056935238,0.01921367,104090.0,104080.0,0.30162207]
[1747056935239,0.22096205,104090.0,104080.0,0.30162207]
[1747056935480,0.20174838,104090.0,104080.0,0.0998543]
[1747056935711,0.1941045,104110.0,104090.0,0.00960688]
[1747056935950,0.19425073,104110.0,104100.0,0.00960614]
[1747056936194,0.00960587,104100.0,104090.0,0.31681627]
[1747056936442,0.21133478,104100.0,104090.0,0.33760278]
[1747056936675,0.19212295,104100.0,104090.0,0.32799571]
[1747056936919,0.19425073,104110.0,104090.0,0.35681627]
[1747056937155,0.19425073,104110.0,104090.0,0.35975004]
[1747056937156,0.02881677,104100.0,104090.0,0.35975004]
[1747056937395,0.02881677,104100.0,104090.0,0.37896353]
[1747056937629,0.03842273,104100.0,104090.0,0.37896353]
[1747056937866,0.21133478,104100.0,104090.0,0.15039515]
[1747056938099,0.20172891,104100.0,104090.0,0.4978543]
[1747056938562,0.20172891,104100.0,104090.0,0.002]
[1747056939770,0.20272891,104100.0,104090.0,0.005]
[1747056940011,0.001,104100.0,104090.0,0.19714141]
[1747056940280,0.21233459,104100.0,104090.0,0.005]
[1747056940978,0.21233459,104100.0,104090.0,0.003]
[1747056941402,0.21233459,104100.0,104090.0,0.004]
[1747056941925,0.21233459,104100.0,104090.0,1.18986964]
[1747056941926,0.001,104100.0,104090.0,1.18986964]
[1747056942161,0.00214623,104110.0,104100.0,0.61408112]
[1747056942404,0.02135529,104110.0,104100.0,2.10267541]
[1747056942658,0.21345969,104110.0,104100.0,2.08346414]
[1747056942895,0.21345969,104110.0,104100.0,1.46070129]
[1747056942896,0.03095986,104110.0,104100.0,1.46070129]
[1747056943126,0.00214623,104110.0,104100.0,2.46967128]
[1747056943367,0.22306528,104110.0,104100.0,0.93269415]
[1747056943597,0.21346071,104110.0,104100.0,1.4156143]
[1747056943825,0.21346071,104110.0,104100.0,1.26034035]
[1747056944063,0.21346071,104110.0,104100.0,1.31976]
[1747056944307,0.03096078,104110.0,104100.0,1.22794926]
[1747056944490,0.23267031,104110.0,104100.0,1.27585494]
[1747056944704,0.23267031,104110.0,104100.0,1.66524926]
[1747056944919,0.23267031,104110.0,104100.0,1.67485503]
[1747056945158,0.21346089,104110.0,104100.0,1.0341143]
[1747056945377,0.20385595,104110.0,104100.0,1.00476617]
[1747056945587,0.20385595,104110.0,104100.0,1.23988617]
[1747056945814,0.20385595,104110.0,104100.0,1.24088617]
[1747056946052,0.20385595,104110.0,104100.0,0.08600617]
[1747056946988,0.20385595,104110.0,104100.0,0.08700617]
[1747056947347,0.20385595,104110.0,104100.0,0.001]
[1747056947819,0.20172891,104100.0,104090.0,0.0690059]
[1747056948442,0.00960559,104100.0,104090.0,0.28036117]
[1747056948667,0.00514623,104110.0,104100.0,0.60734605]
[1747056948874,0.01514622,104110.0,104100.0,2.80421776]
[1747056949093,0.01514622,104110.0,104100.0,2.22568276]
[1747056949309,0.22546052,104110.0,104100.0,1.4095033]
[1747056949510,0.01414622,104110.0,104100.0,1.29864021]
[1747056949721,0.02175061,104110.0,104100.0,1.7775532]
[1747056949928,0.03135518,104110.0,104100.0,1.08871457]
[1747056950133,0.03135518,104110.0,104100.0,1.11753357]
[1747056950546,0.02175061,104110.0,104100.0,1.11753357]
[1747056950746,0.02175061,104110.0,104100.0,0.6999133]
[1747056950747,0.22346052,104110.0,104100.0,0.6999133]
[1747056950958,0.01214622,104110.0,104100.0,0.95905357]
[1747056951159,0.02175079,104110.0,104100.0,1.43896656]
[1747056951373,0.23306546,104110.0,104100.0,0.7009133]
[1747056951603,0.22346079,104110.0,104100.0,0.7009133]
[1747056951974,0.2134608,104110.0,104100.0,0.57824]
[1747056952408,0.2134608,104110.0,104100.0,0.16336]
[1747056953048,0.2134608,104110.0,104100.0,0.17296614]
[1747056953269,0.2134608,104110.0,104100.0,0.003]
[1747056953270,0.20385586,104110.0,104100.0,0.003]
[1747056953482,0.54385586,104110.0,104100.0,0.003]
[1747056954401,1.170564,104110.0,104100.0,0.003]
[1747056954617,0.67345101,104110.0,104100.0,0.002]
[1747056954828,0.22096178,104090.0,104080.0,0.00960799]
[1747056955040,0.20174848,104090.0,104070.0,0.24022361]
[1747056955255,0.21135527,104090.0,104080.0,0.20176767]
[1747056955508,0.21137538,104080.0,104070.0,0.1246843]
[1747056955730,0.21137538,104080.0,104070.0,0.30725]
[1747056955941,0.22098337,104080.0,104070.0,0.34568973]
[1747056956375,0.20174838,104090.0,104080.0,0.20176786]
[1747056956601,0.0096066,104090.0,104080.0,0.23059017]
[1747056956819,0.00960587,104100.0,104090.0,0.22096141]
[1747056957034,0.23054623,104100.0,104090.0,0.30720938]
[1747056957254,0.21133496,104100.0,104090.0,0.0958543]
[1747056957466,0.21133496,104100.0,104090.0,0.29760278]
[1747056957683,0.01921146,104100.0,104090.0,0.29760278]
[1747056957931,0.22094046,104100.0,104090.0,0.30720957]
[1747056958143,0.21133487,104100.0,104090.0,0.10546137]
[1747056958357,0.21133487,104100.0,104090.0,0.29760278]
[1747056958562,0.201729,104100.0,104090.0,0.29760278]
[1747056958762,0.19212295,104100.0,104090.0,0.0958543]
[1747056958982,0.202729,104100.0,104090.0,0.29760278]
[1747056959263,0.001,104100.0,104090.0,0.32642287]
[1747056959515,0.01099999,104100.0,104090.0,1.73483586]
[1747056959737,0.01099999,104100.0,104090.0,1.58413586]
[1747056959956,0.02060539,104100.0,104090.0,1.73076386]
[1747056960180,0.01099999,104100.0,104090.0,1.73076386]
[1747056960405,0.01099999,104100.0,104090.0,2.11406486]
[1747056960625,0.02060539,104100.0,104090.0,1.40587987]
[1747056960853,0.03021107,104100.0,104090.0,1.09661645]
[1747056961075,0.02060539,104100.0,104090.0,1.10622287]
[1747056961305,0.01099999,104100.0,104090.0,1.10622287]
[1747056961541,0.02135565,104110.0,104090.0,1.70580512]